Workbook

Sheet Choose SIC and Region
B1: California CoPower ONE Rate Areas and SIC Codes
A2: CA DPPO Rate Area Definitions
A3: Region 1 | D3: Region 2
A4: ZIP Codes 900–908, 910–928, 930, 932–933, 935–938, 952–953, and 956–958. The following ZIP Codes are excluded from Region 1 but included in Region 2: 92222, 92227, 92231–92233, 92243–92244, 92249–92251, 92257, 92259, 92266, 92273, 92275, 92281, 92283, 92328, 92384, 92389, 93013, 93014, 93067, 93512–93515, 93517, 93522, 93526, 93529–93530, 93541–93542, 93545–93546, 93549, 95646, 95724, 95728 | D4: ZIP Codes: 931, 934, 939–951, 954–955, 959–961, 92222, 92227, 92231–92233, 92243–92244, 92249–92251, 92257, 92259, 92266, 92273, 92275, 92281, 92283, 92328, 92384, 92389, 93013–93014, 93067, 93512–93515, 93517, 93522, 93526, 93529–93530, 93541–93542, 93545–93546, 93549, 95646, 95724, 95728
A6: CA DHMO Rate Area Definitions
A7: Region 1 and Region 2 | D7: Region 3
A8: Los Angeles | D8: Alameda | E8: Mariposa | F8: San Francisco
A9: Orange | D9: Contra Costa | E9: Riverside | F9: San Mateo
D10: Fresno | E10: San Bernardino | F10: Santa Clara
D11: Kern | E11: San Diego | F11: Ventura
A12: Region 4 | D12: Region 5
A13: Alpine | B13: Marin | C13: San Luis Obispo | D13: Butte | E13: Mendocino | F13: Siskiyou
A14: Amador | B14: Merced | C14: Santa Barbara | D14: Del Norte | E14: Modoc | F14: Sutter
A15: Calaveras | B15: Monterey | C15: Sierra | D15: Glenn | E15: Mono | F15: Tehama
A16: Colusa | B16: Napa | C16: Solano | D16: Humboldt | E16: San Benito | F16: Trinity
A17: El Dorado | B17: Nevada | C17: Sonoma | D17: Lake | E17: Santa Cruz | F17: Yuba
A18: Imperial | B18: Placer | C18: Stanislaus | D18: Lassen | E18: Shasta
A19: Inyo | B19: Plumas | C19: Tuolumne
A20: Kings | B20: Sacramento | C20: Tulare
A21: Madera | B21: San Joaquin | C21: Yolo
A23: SIC Level Classifications
A24: Level 1 Eligible Industries - Delta Dental (DPPO)
A25: Advertising (except Misc., not classified 7319) | C25: 7311-7313 | D25: Hospitals | F25: 8062-8069
A26: Agriculture, Forestry, Fishing (except seasonal employees) | C26: 0100-0999 | D26: Independent Auto Repair and Services | F26: 7532-7599
A27: Auto Rental Agencies | C27: 7513-7519 | D27: Laundry/Garment Service/Show Repair Services | F27: 7211-7219, 7251
A28: Automobile Parking Services | C28: 7521 | D28: Manufacturing (except Jewelry Manufacturing) | F28: 2000-2699
A29: Building Maintenance / Equipment Rental | C29: 7349-7359 | D29: Manufacturing (Chemicals, Allied and Other) | F29: 2810-3999
A30: Collection Agencies and Credit Reporting Services | C30: 7322-7323 | D30: Mining, Oil and Gas Extraction | F30: 1000-1499
A31: Communication (Radio, Telephone, TV/Radio Broadcasting) | C31: 4800-4899 | D31: Miscellaneous Repair (Welding, etc) | F31: 7692-7699
A32: Community Services Organizations / Social Services | C32: 8300-8499 | D32: Museum Art Galleries and Gardens | F32: 8412, 8422
A33: Computer Programming and Other Computer Services | C33: 7371-7379 | D33: New Syndicates | F33: 7383
A34: Construction Contractors | C34: 1500-1799 | D34: Photofinishing Labs | F34: 7384
A35: Direct Mailing, Reproduction, Secretarial Services | C35: 7331-7338 | D35: Printing and Publishing | F35: 2700-2799
A36: Disinfecting and Pest Control Services | C36: 7342 | D36: Public Administration (Cities, Counties, Police, etc) | F36: 9000-9720, 9722-9998
A37: Government Funded Groups | C37: 8300-8499 | D37: Public and Private Schools (Elementary and High School) | F37: 8200-8299
A38: Electrical Repair (Radio, TV, A/C, Refrigerator) | C38: 7622-7629 | D38: Retail | F38: 5200-5510, 5610-5699, 5712-5736, 5912-5999
A39: Engineering and Management Services | C39: 8711-8748 | D39: Security Systems, Detectives, Armored Car | F39: 7381-7382
A40: Finance (Banks, Securities, Credit Agencies) | C40: 6000-6299 | D40: Transportation | F40: 4000-4799
A41: Funeral Services and Crematories | C41: 7261 | D41: Utilities | F41: 4900-4999
A42: Furniture Repair/Reupholstery | C42: 7641 | D42: Wholesale Trade | F42: 5000-5199
A43: Misc. Computer Services | C43: 7379
A44: Level 2 Eligible Industries - Delta Dental (DPPO)
A45: Advertising (Miscellaneous, not classified) | C45: 7319 | D45: Medical Groups | F45: 8000-8059, 8082-8099
A46: Automobile Dealerships | C46: 5511-5599 | D46: Photographic Studios | F46: 7221
A47: Amusement, Recreation, and Entertainment | C47: 7800-7999 | D47: Restaurants | F47: 5800-5899
A48: Hotels | C48: 7000-7099 | D48: Tax Return Preparation Services / Misc. Personal Svcs | F48: 7291-7299
A49: Insurance Carriers/Brokers | C49: 6300-6499 | D49: Real Estate | F49: 6500-6799
A50: Jewelry Manufacturing | C50: 3911-3915 | D50: Religious Organizations (Admin. And Mgmt. staff only) | F50: 8661
A51: Legal | C51: 8100-8199 | D51: Watch, Clock and Jewelry Repair | F51: 7631
A52: Management Carve-out (any industry) | C52: 9999
A53: Ineligible Industries - Delta Dental (DPPO)
A54: Associations and Trusts1 | C54: 8600-8660, 8662-8699 | D54: Religious Organizations (except Churches #8661) | F54: No SIC
A55: Beauty and Barber Shops | C55: 7231-7241 | D55: Private Households | F55: 8811
A56: International Affairs | C56: 9721 | D56: Partnerships | F56: No SIC
A57: Dental Offices, Dental Labs, and Medical Labs | C57: 8021, 8071, 8072 | D57: Seasonal Employees (Christmas/Part-time Help) | F57: No SIC
A58: Employment Agencies & PEOs | C58: 7361-7363 | D58: Seasonal Employees (Agriculture) | F58: 0761-0783
A59: Groups with high turnover2 | C59: Varies | D59: Miscellaneous Services not classified elsewhere | F59: 8999
A60: Miscellaneous Business Services | C60: 7389
A61: Ineligible Industries - DeltaCare® USA (DHMO)
A62: Law firms, associations, groups with seasonal employment, groups without an employee/employer relationship and businesses with high turnover2 are not eligible for any DeltaCare® USA plan.
A64: Ineligible Industries - UNUM (Life)
A65: All groups in the cannabis or cannabis related industries are ineligible for life coverage. However, cannabis groups are still eligible for CoPower ONE Voluntary which does not include UNUM (Life).
A68: 1 Management and administrative staff of associations and trusts are eligible at Level 2. Use SIC Code 9999.
A69: 2 A business has high turnover if 20% or more of the average number of its employees during the past 12 months were newly hired for reasons other than the growth of the business.

Sheet CoPower One DHMO Comparison
I5: =IF(AND(HMO_EligibleEEs="2-9 Employees",F14>9),"Total enrolling employees higher than eligible employees (2-9). Change eligible or enrolling employees.","") -> 
A7: Company Information
A8: Company Name: | I8: =IF(H12="Yes",,"Must have a minimum of 2 enrolled for Good plan") -> Must have a minimum of 2 enrolled for Good plan
A9: Effective Date: | B9: Select your effective date | I9: =IF(H13="Yes",,"Must have a minimum of 5 enrolled for Better and Best plans") -> Must have a minimum of 5 enrolled for Better and Best plans
F10: Enrolling Employees | I10: =IF(OR(AND(OR(HMO_EligibleEEs="Enter Number of Employees",HMO_EligibleEEs="2-9 Employees"),OR(B13="Enhanced Life $50,000",B13="Enhanced Life $100,000",B13="Enhanced Life $150,000")),AND((SUM(G13)<10),OR(B13="Enhanced Life $50,000",B13="Enhanced Life $100,000",B13="Enhanced Life $150,000"))),"Enhanced Life is only available for CoPower ONE plans with 10+ enrolling employees.",) -> 0
A11: Eligible Employees | B11: Select your group size | D11: Number of Single | F11: 0 | G11: =IF(GroupSize>100,"100+",IF(GroupSize>49,"50-99",IF(AND(GroupSize>9,GroupSize<50),"10-49",IF(AND(GroupSize<10,GroupSize>4),"5-9","2-4")))) -> 2-4
A12: Region | B12: Select your CA DHMO Region | D12: Number of Two Party | F12: 0 | G12: =SUM(F11+F12+F13) -> 0 | H12: =IF(SUM(G12)>1,"Yes","No") -> No
A13: Life Amount2 | B13: Standard Life Amount | D13: Number of Three Party+ | F13: 0 | G13: =SUM(F11+F12+F13) -> 0 | H13: =IF(SUM(G13)>4,"Yes","No") -> No | I13: =IF(OR(I8="Must have a minimum of 2 enrolled for Good plan",I5="Total enrolling employees higher than eligible employees (2-9). Change eligible or enrolling employees.",I10="Enhanced Life is only available for CoPower ONE plans with 10+ enrolling employees."),1,0) -> 1 | J13: Good Check
D14: Total Enrolling Employees | F14: =F13+F12+EECOunt_HMO_Single -> 0 | I14: =IF(OR(I9="Must have a minimum of 5 enrolled for Better and Best plans",I10="Enhanced Life is only available for CoPower ONE plans with 10+ enrolling employees.",I5="Total enrolling employees higher than eligible employees (2-9). Change eligible or enrolling employees."),1,0) -> 1 | J14: Better/Best Check
A16: Cost Comparison - Monthly Rates
A18: =CONCATENATE(B12,B13,G11) -> Select your CA DHMO RegionStandard Life Amount2-4 | C18: Good | E18: Better | G18: Best
A20: Single | C20: =_xlfn.IFNA(IF(I13=1,"",VLOOKUP(AreaSIC_Selection,List_RateTable_HMO,2,FALSE)),"") ->  | E20: =_xlfn.IFNA(IF(I14=1,"",VLOOKUP(AreaSIC_Selection,List_RateTable_HMO,5,FALSE)),"") ->  | G20: =_xlfn.IFNA(IF(I14=1,"",VLOOKUP(AreaSIC_Selection,List_RateTable_HMO,8,FALSE)),"") -> 
A21: Two Party | C21: =_xlfn.IFNA(IF(I13=1,"",VLOOKUP(AreaSIC_Selection,List_RateTable_HMO,3,FALSE)),"") ->  | E21: =_xlfn.IFNA(IF(I14=1,"",VLOOKUP(AreaSIC_Selection,List_RateTable_HMO,6,FALSE)),"") ->  | G21: =_xlfn.IFNA(IF(I14=1,"",VLOOKUP(AreaSIC_Selection,List_RateTable_HMO,9,FALSE)),"") -> 
A22: Three Party+ | C22: =_xlfn.IFNA(IF(I13=1,"",VLOOKUP(AreaSIC_Selection,List_RateTable_HMO,4,FALSE)),"") ->  | E22: =_xlfn.IFNA(IF(I14=1,"",VLOOKUP(AreaSIC_Selection,List_RateTable_HMO,7,FALSE)),"") ->  | G22: =_xlfn.IFNA(IF(I14=1,"",VLOOKUP(AreaSIC_Selection,List_RateTable_HMO,10,FALSE)),"") -> 
A23: Total Cost | C23: =IFERROR(SUM((C20*F11)+(C21*F12)+(C22*F13)),"") ->  | E23: =IFERROR(SUM((E20*F11)+(E21*F12)+(E22*F13)),"") ->  | G23: =IFERROR(SUM((G20*F11)+(G21*F12)+(G22*F13)),"") -> 
A25: Benefit Comparison
C27: Good | E27: Better | G27: Best
C28: In Network | D28: Out of Network | E28: In Network | F28: Out of Network | G28: In Network | H28: Out of Network
A29: DHMO - DeltaCare® USA | C29: DeltaCare® USA Plan 13B
A30: Calendar Maximum (Per Patient) | C30: None | G30: None
A31: Deductible (Per Patient) | C31: None | G31: None
A32: Diagnostic & Preventive | C32: Exams, x-rays, cleanings, and flouride treatments | G32: No cost
A33: Basic Restorative | C33: Fillings (amalgam cost per surface) | G33: No cost
A34: Periodontics | C34: Scaling and Root planing | G34: $50 copay
A35: Endodontics | C35: Root canal – anterior teeth (excluding final restoration) Root canal – molar (excluding final restoration) | G35: $95 copay $335 copay
A36: Oral Surgery | C36: Extraction, erupted tooth or exposed root Surgical removal of erupted tooth requiring removal of bone or sectioning of tooth Removal of impacted tooth – completely boney | G36: $5 copay $45 copay $95 copay
A37: Prosthodontics | C37: Crown – porcelain fused to high noble metal; full cast high noble metal Complete denture – maxillary Maxillary partial denture – resin base | G37: $355 copay $285 copay $245 copay
A38: Orthodontics | C38: Child Adult | G38: $1,900 copay $2,100 copay
A39: Vision - Vision Service Plan
A40: Annual Copayment | C40: $25 exam/$25 materials | E40: $10 exam/$25 materials | G40: $10 exam/$25 materials
A41: Eye Exam | C41: Covered in full* | D41: Reimbursed up to $45 | E41: Covered in full* | F41: Reimbursed up to $45 | G41: Covered in full* | H41: Reimbursed up to $45
A42: Single-vision Lenses | C42: Covered in full* | D42: Reimbursed up to $30 | E42: Covered in full* | F42: Reimbursed up to $30 | G42: Covered in full* | H42: Reimbursed up to $30
A43: Bifocal Lenses | C43: Covered in full* | D43: Reimbursed up to $50 | E43: Covered in full* | F43: Reimbursed up to $50 | G43: Covered in full* | H43: Reimbursed up to $50
A44: Trifocal Lenses | C44: Covered in full* | D44: Reimbursed up to $65 | E44: Covered in full* | F44: Reimbursed up to $65 | G44: Covered in full* | H44: Reimbursed up to $65
A45: Frames | C45: $150 allowance | D45: Reimbursed up to $70 | E45: $150 allowance | F45: Reimbursed up to $70 | G45: $150 allowance | H45: Reimbursed up to $70
A46: Contact Lenses | C46: $150 allowance | D46: Reimbursed up to $105 | E46: $150 allowance | F46: Reimbursed up to $105 | G46: $150 allowance | H46: Reimbursed up to $105
C47: Good | E47: Better | G47: Best
A48: Vision - Frequency
A49: Eye Exam | C49: 12 months | E49: 12 months | G49: 12 months
A50: Lenses | C50: 24 months | E50: 12 months | G50: 12 months
A51: Frames | C51: 24 months | E51: 24 months | G51: 12 months
A52: Contact Lenses (in lieu of lenses and a frame) | C52: 24 months | E52: 12 months | G52: 12 months
A53: Life - UNUM
A54: Basic Group Term Life with AD&D and EAP | C54: =IF($B$13="Standard Life Amount","$15,000 policy",$B$13) -> $15,000 policy | E54: =IF($B$13="Standard Life Amount","$20,000 policy",$B$13) -> $20,000 policy | G54: =IF($B$13="Standard Life Amount","$25,000 policy",$B$13) -> $25,000 policy
A55: 1 2-year rate guarantee
A56: 2 Employers with 10 or more enrolling employees have the option of substituting the standard group term life policy amounts with either a $50,000, $100,000 or $150,000 policy for an additional charge.
A57: * After Copay
A59: Presented by
A60: **Enter your contact information here.** | F60: License #
A61: This document is not meant to replace a quote and does not include all exclusions, limitations or program guidelines. While the information and rates provided here are believed to be accurate as of the print date, they are subject to change without notice. For the most up-to-date information, contact CoPower. CoPower ONE plans are not available to groups currently insured with UNUM.

Sheet CoPower One DPPO Comparison
K6: =IF(AND(PPO_EligibleEEs="2-9 Employees",G16>9),"Total enrolling employees higher than eligible employees (2-9). Change eligible or enrolling employees.","") -> 
A8: Company Information
A9: Company Name: | K9: =IF(J14="Yes",,"Must have a minimum of 2 enrolled for Good plan") -> Must have a minimum of 2 enrolled for Good plan
A10: Effective Date: | B10: Select your effective date | K10: =IF(J15="Yes",,"Must have a minimum of 5 enrolled for Better, Better Plus and Best plans") -> Must have a minimum of 5 enrolled for Better, Better Plus and Best plans
K11: =IF(OR(AND(OR(PPO_EligibleEEs="Enter Number of Employees",PPO_EligibleEEs="2-9 Employees"),OR(B15="Enhanced Life $50,000",B15="Enhanced Life $100,000",B15="Enhanced Life $150,000")),AND((SUM(I14)<10),OR(B15="Enhanced Life $50,000",B15="Enhanced Life $100,000",B15="Enhanced Life $150,000"))),"Enhanced Life is only available for CoPower ONE plans with 10+ enrolling employees.",) -> 0
A12: Eligible Employees | B12: Select your group size | G12: Enrolling Employees
A13: Region | B13: Select your CA PPO Region | D13: Number of Single | G13: 0 | I13: =IF(GroupSize>100,"100+",IF(GroupSize>49,"50-99",IF(AND(GroupSize>9,GroupSize<50),"10-49",IF(AND(GroupSize<10,GroupSize>4),"5-9","2-4")))) -> 2-4 | K13: =IF(OR(K9="Must have a minimum of 2 enrolled for Good plan",K11="Enhanced Life is only available for CoPower ONE plans with 10+ enrolling employees.",K6="Total enrolling employees higher than eligible employees (2-9). Change eligible or enrolling employees."),1,0) -> 1 | L13: Good Chk
A14: SIC Level | B14: Select your SIC Level | D14: Number of Two Party | G14: 0 | I14: =SUM(G13+G14+G15) -> 0 | J14: =IF(SUM(I14)>1,"Yes","No") -> No | K14: =IF(OR(K9="Must have a minimum of 2 enrolled for Good plan",K10="Must have a minimum of 5 enrolled for Better, Better Plus and Best plans",K11="Enhanced Life is only available for CoPower ONE plans with 10+ enrolling employees.",K6="Total enrolling employees higher than eligible employees (2-9). Change eligible or enrolling employees."),1,0) -> 1 | L14: Better/BetterPlus/Best Chk
A15: Life Amount2 | B15: Standard Life Amount | D15: Number of Three Party+ | G15: 0 | I15: =SUM(G13+G14+G15) -> 0 | J15: =IF(SUM(I15)>4,"Yes","No") -> No
D16: Total Enrolling Employees | G16: =EECount_PPO_Single+G14+G15 -> 0
A18: Cost Comparison - Monthly Rates
A20: =CONCATENATE(B13,B14,B15,I13) -> Select your CA PPO RegionSelect your SIC LevelStandard Life Amount2-4 | B20: =SUM(CPPPO_EECheck) -> 0 | C20: Good | E20: Better | G20: Better Plus | I20: Best
A22: Single | C22: =_xlfn.IFNA(IF(K13=1,"",VLOOKUP(AreaSIC_Selection,List_RateTable_PPO,2,FALSE)),"") ->  | E22: =_xlfn.IFNA(IF(K14=1,"",VLOOKUP(AreaSIC_Selection,List_RateTable_PPO,5,FALSE)),"") ->  | G22: =_xlfn.IFNA(IF(K14=1,"",VLOOKUP(AreaSIC_Selection,List_RateTable_PPO,8,FALSE)),"") ->  | I22: =_xlfn.IFNA(IF(K14=1,"",VLOOKUP(AreaSIC_Selection,List_RateTable_PPO,11,FALSE)),"") -> 
A23: Two Party | C23: =_xlfn.IFNA(IF(K13=1,"",VLOOKUP(AreaSIC_Selection,List_RateTable_PPO,3,FALSE)),"") ->  | E23: =_xlfn.IFNA(IF(K14=1,"",VLOOKUP(AreaSIC_Selection,List_RateTable_PPO,6,FALSE)),"") ->  | G23: =_xlfn.IFNA(IF(K14=1,"",VLOOKUP(AreaSIC_Selection,List_RateTable_PPO,9,FALSE)),"") ->  | I23: =_xlfn.IFNA(IF(K14=1,"",VLOOKUP(AreaSIC_Selection,List_RateTable_PPO,12,FALSE)),"") -> 
A24: Three Party+ | C24: =_xlfn.IFNA(IF(K13=1,"",VLOOKUP(AreaSIC_Selection,List_RateTable_PPO,4,FALSE)),"") ->  | E24: =_xlfn.IFNA(IF(K14=1,"",VLOOKUP(AreaSIC_Selection,List_RateTable_PPO,7,FALSE)),"") ->  | G24: =_xlfn.IFNA(IF(K14=1,"",VLOOKUP(AreaSIC_Selection,List_RateTable_PPO,10,FALSE)),"") ->  | I24: =_xlfn.IFNA(IF(K14=1,"",VLOOKUP(AreaSIC_Selection,List_RateTable_PPO,13,FALSE)),"") -> 
A25: Total Cost | C25: =IFERROR(SUM((C22*G13)+(C23*G14)+(C24*G15)),"") ->  | E25: =IFERROR(SUM((E22*G13)+(E23*G14)+(E24*G15)),"") ->  | G25: =IFERROR(SUM((G22*G13)+(G23*G14)+(G24*G15)),"") ->  | I25: =IFERROR(SUM((I22*G13)+(I23*G14)+(I24*G15)),"") -> 
A27: Benefit Comparison
C29: Good | E29: Better | G29: Better Plus | I29: Best
C30: In Network | D30: Out of Network | E30: In Network | F30: Out of Network | G30: In Network | H30: Out of Network | I30: In Network | J30: Out of Network
A31: DPPO - Delta Dental | C31: Delta Dental DPPO3 | G31: Delta Dental DPPO + Premier4
A32: Calendar Maximum (Per Patient) | C32: $1,000 | D32: $750 | E32: $1,500 | F32: $1,250 | G32: $1,500 | H32: $1,250 | I32: $2,000 | J32: $1,500
A33: Deductible (Per Patient) | C33: $50 | D33: $75 | E33: $50 | F33: $75 | G33: $50 | H33: $75 | I33: $50 | J33: $75
A34: Deductible Waived for Diagnostic & Preventive | C34: Yes | D34: No | E34: Yes | F34: No | G34: Yes | H34: No | I34: Yes
A35: Diagnostic and Preventive Services | C35: 100% | D35: 50% | E35: 100% | F35: 80% | G35: 100% | H35: 80% | I35: 100%
A36: Basic, Oral Surgery, Endodontics and Periodontics | C36: 80% | D36: 50% | E36: 80% | G36: 80% | I36: 80%
A37: Major Services | C37: 50% | E37: 50% | G37: 50% | I37: 50%
A38: Orthodontics-Children Only (Available to groups 5+ enrolled) | C38: Not available | E38: 50% lifetime max $1,000 | G38: 50% lifetime max $1,000 | I38: 50% lifetime max $1,000
A39: Vision - Vision Service Plan
A40: Annual Copayment | C40: $25 exam/$25 materials | E40: $10 exam/$25 materials | G40: $10 exam/$25 materials | I40: $10 exam/$25 materials
A41: Eye Exam | C41: Covered in full* | D41: Reimbursed up to $45 | E41: Covered in full* | F41: Reimbursed up to $45 | G41: Covered in full* | H41: Reimbursed up to $45 | I41: Covered in full* | J41: Reimbursed up to $45
A42: Single-vision Lenses | C42: Covered in full* | D42: Reimbursed up to $30 | E42: Covered in full* | F42: Reimbursed up to $30 | G42: Covered in full* | H42: Reimbursed up to $30 | I42: Covered in full* | J42: Reimbursed up to $30
A43: Bifocal Lenses | C43: Covered in full* | D43: Reimbursed up to $50 | E43: Covered in full* | F43: Reimbursed up to $50 | G43: Covered in full* | H43: Reimbursed up to $50 | I43: Covered in full* | J43: Reimbursed up to $50
A44: Trifocal Lenses | C44: Covered in full* | D44: Reimbursed up to $65 | E44: Covered in full* | F44: Reimbursed up to $65 | G44: Covered in full* | H44: Reimbursed up to $65 | I44: Covered in full* | J44: Reimbursed up to $65
A45: Frames | C45: $150 allowance | D45: Reimbursed up to $70 | E45: $150 allowance | F45: Reimbursed up to $70 | G45: $150 allowance | H45: Reimbursed up to $70 | I45: $150 allowance | J45: Reimbursed up to $70
A46: Contact Lenses | C46: $150 allowance | D46: Reimbursed up to $105 | E46: $150 allowance | F46: Reimbursed up to $105 | G46: $150 allowance | H46: Reimbursed up to $105 | I46: $150 allowance | J46: Reimbursed up to $105
A47: Vision - Frequency
A48: Eye Exam | C48: 12 months | E48: 12 months | G48: 12 months | I48: 12 months
A49: Lenses | C49: 24 months | E49: 12 months | G49: 12 months | I49: 12 months
A50: Frames | C50: 24 months | E50: 24 months | G50: 24 months | I50: 12 months
A51: Contact Lenses (in lieu of lenses and a frame) | C51: 24 months | E51: 12 months | G51: 12 months | I51: 12 months
C52: Good | E52: Better | G52: Better Plus | I52: Best
A53: Life - UNUM
A54: Basic Group Term Life with AD&D and EAP | C54: =IF($B$15="Standard Life Amount","$15,000 policy",$B$15) -> $15,000 policy | E54: =IF($B$15="Standard Life Amount","$20,000 policy",$B$15) -> $20,000 policy | G54: =IF($B$15="Standard Life Amount","$20,000 policy",$B$15) -> $20,000 policy | I54: =IF($B$15="Standard Life Amount","$25,000 policy",$B$15) -> $25,000 policy
A55: 1 2-year rate guarantee
A56: 2 Employers with 10 or more enrolling employees have the option of substituting the standard group term life policy amounts with either a $50,000, $100,000 or $150,000 policy for an additional charge.
A57: 3 Delta Dental DPPO: All dentists (in- and out-of-network) are reimbursed at the lesser of the submitted charge or the DPPO provider's allowed fee.
A58: 4 Delta Dental DPPO + Premier: DPPO dentists are reimbursed at the lesser of the submitted charge or the DPPO provider allowed fee. Delta Dental Premier dentists are reimbursed at the lesser of the submitted charge or the Premier provider allowed fee. Non-contracted dentists are reimbursed at the lesser of the submitted charge or the fee that satisfies the majority of dentists with the same training and geographical area.
A59: * After Copay
A61: Presented by
A62: **Enter your contact information here.** | H62: License #
A63: This document is not meant to replace a quote and does not include all exclusions, limitations or program guidelines. While the information and rates provided here are believed to be accurate as of the print date, they are subject to change without notice. For the most up-to-date information, contact CoPower. CoPower ONE plans are not available to groups currently insured with UNUM.

Sheet CoPower One Non-Vol Dual Choice
K5: =IF(AND(HP_EligibleEEs="2-9 Employees",SUM(G16,H16)>9),"Total enrolling employees higher than eligible employees (2-9). Change eligible or enrolling employees.","") -> 
A8: Company Information | L8: Enrolling>Eligible Check
A9: Company Name: | K9: =IF(SUM(G16:H16=0),"",IF(J16="Yes",,"Dual Choice requires a minimum of 4 enrolled. ")) -> Dual Choice requires a minimum of 4 enrolled. | L9: Dual Choice 4 EE Minimum Check
A10: Effective Date: | B10: Select your effective date | K10: =IF(I15="Yes",,"CoPower ONE Good: Dual Choice requires a minimum of 2 enrolled in both the DHMO and PPO option.") -> CoPower ONE Good: Dual Choice requires a minimum of 2 enrolled in both the DHMO and PPO option. | L10: Good Dual Choice 2 EE on Each Plan Minimum Check
E11: =IF(GroupSize_Dual>49,"50-99",IF(AND(GroupSize_Dual>9,GroupSize_Dual<50),"10-49",IF(AND(GroupSize_Dual<10,GroupSize_Dual>4),"5-9","2-4"))) -> 2-4 | F11: =SUM(GroupSize_Dual+H16) -> 0 | G11: Enrolling Employees
A12: Eligible Employees | B12: Select your group size | E12: =IF(F11>100,"100+",IF(F11>49,"50-99",IF(AND(F11>9,F11<50),"10-49",IF(AND(F11<10,F11>4),"5-9","2-4")))) -> 2-4 | G12: DPPO | H12: DHMO
A13: PPO Region | B13: Select your CA PPO Region | E13: Number of Single | G13: 0 | H13: 0 | I13: =IF(SUM(G13:G15)<2,"0","1") -> 0 | J13: =IF(SUM(G13:G15)<5,"0","1") -> 0 | K13: =IF(J15="Yes",,"CoPower ONE Better, Better Plus, and Best: Dual Choice requires a minimum of 5 enrolled in PPO and 2 enrolled in the DHMO option.") -> CoPower ONE Better, Better Plus, and Best: Dual Choice requires a minimum of 5 enrolled in PPO and 2 enrolled in the DHMO option. | L13: Better / Better Plus / Best Dual Choice 5 EE on PPO and 2 EE on HMO Check
A14: DHMO Region | B14: Select your CA DHMO Region | E14: Number of Two Party | G14: 0 | H14: 0 | I14: =IF(SUM(H13:H15)<2,"0","1") -> 0 | J14: =IF(SUM(H13:H15)<2,"0","1") -> 0
A15: SIC Level | B15: Select your SIC Level | E15: Number of Three Party+ | G15: 0 | H15: 0 | I15: =IF(SUM(I13+I14)>=2,"Yes","No") -> No | J15: =IF(SUM(J13+J14)>=2,"Yes","No") -> No
A16: Life Amount3 | B16: Standard Life Amount | E16: Total Enrolling Employees | G16: =SUM(G13+G14+G15) -> 0 | H16: =SUM(H13+H14+H15) -> 0 | J16: =IF(SUM(G16+H16)>3,"Yes","No") -> No | K16: =IF(OR(AND(OR(PPO_EligibleEEs="Enter Number of Employees",PPO_EligibleEEs="2-9 Employees"),OR(B16="Enhanced Life $50,000",B16="Enhanced Life $100,000",B16="Enhanced Life $150,000")),AND((SUM(G16:H16)<10),OR(B16="Enhanced Life $50,000",B16="Enhanced Life $100,000",B16="Enhanced Life $150,000"))),"Enhanced Life is only available for CoPower ONE plans with 10+ enrolling employees.",) -> 0 | L16: Enhanced Life Messaging
A17: .
A18: Cost Comparison - Monthly Rates
A20: =IF(AND(OR(B16="Enhanced Life $50,000",B16="Enhanced Life $100,000",B16="Enhanced Life $150,000"),SUM(G16:H16)>9),CONCATENATE(B13,B15,B16,E12),CONCATENATE(B13,B15,B16,E11)) -> Select your CA PPO RegionSelect your SIC LevelStandard Life Amount2-4 | B20: =CONCATENATE(B14,B16,E12) -> Select your CA DHMO RegionStandard Life Amount2-4 | C20: Good | E20: Better | G20: Better Plus | I20: Best | K20: =IF(OR(K9="Dual Choice requires a minimum of 4 enrolled. ",K10="CoPower ONE Good: Dual Choice requires a minimum of 2 enrolled in both the DHMO and PPO option.",K16="Enhanced Life is only available for CoPower ONE plans with 10+ enrolling employees.",K5="Total enrolling employees higher than eligible employees (2-9). Change eligible or enrolling employees."),1,0) -> 1 | L20: Good Checks
A21: DPPO Enrollment | K21: =IF(OR(K9="Dual Choice requires a minimum of 4 enrolled. ",K10="CoPower ONE Good: Dual Choice requires a minimum of 2 enrolled in both the DHMO and PPO option.",K13="CoPower ONE Better, Better Plus, and Best: Dual Choice requires a minimum of 5 enrolled in PPO and 2 enrolled in the DHMO option.",K16="Enhanced Life is only available for CoPower ONE plans with 10+ enrolling employees.",K5="Total enrolling employees higher than eligible employees (2-9). Change eligible or enrolling employees."),1,0) -> 1 | L21: Better / Better Plus / Best Checks
A22: Single | C22: =_xlfn.IFNA(IF(K20=1,"",VLOOKUP(AreaSIC_SelectionPPO,List_RateTable_PPO,2,FALSE)),"") ->  | E22: =_xlfn.IFNA(IF(K21=1,"",VLOOKUP(AreaSIC_SelectionPPO,List_RateTable_PPO,5,FALSE)),"") ->  | G22: =_xlfn.IFNA(IF(K21=1,"",VLOOKUP(AreaSIC_SelectionPPO,List_RateTable_PPO,8,FALSE)),"") ->  | I22: =_xlfn.IFNA(IF(K21=1,"",VLOOKUP(AreaSIC_SelectionPPO,List_RateTable_PPO,11,FALSE)),"") -> 
A23: Two Party | C23: =_xlfn.IFNA(IF(K20=1,"",VLOOKUP(AreaSIC_SelectionPPO,List_RateTable_PPO,3,FALSE)),"") ->  | E23: =_xlfn.IFNA(IF(K21=1,"",VLOOKUP(AreaSIC_SelectionPPO,List_RateTable_PPO,6,FALSE)),"") ->  | G23: =_xlfn.IFNA(IF(K21=1,"",VLOOKUP(AreaSIC_SelectionPPO,List_RateTable_PPO,9,FALSE)),"") ->  | I23: =_xlfn.IFNA(IF(K21=1,"",VLOOKUP(AreaSIC_SelectionPPO,List_RateTable_PPO,12,FALSE)),"") -> 
A24: Three Party+ | C24: =_xlfn.IFNA(IF(K20=1,"",VLOOKUP(AreaSIC_SelectionPPO,List_RateTable_PPO,4,FALSE)),"") ->  | E24: =_xlfn.IFNA(IF(K21=1,"",VLOOKUP(AreaSIC_SelectionPPO,List_RateTable_PPO,7,FALSE)),"") ->  | G24: =_xlfn.IFNA(IF(K21=1,"",VLOOKUP(AreaSIC_SelectionPPO,List_RateTable_PPO,10,FALSE)),"") ->  | I24: =_xlfn.IFNA(IF(K21=1,"",VLOOKUP(AreaSIC_SelectionPPO,List_RateTable_PPO,13,FALSE)),"") ->  | L24: =IF(K20=1,"",IF(SUM($G$13:$G$15)>0,SUM(($G$13*C22)+($G$14*C23)+($G$15*C24)),0)) ->  | M24: =IF(K21=1,"",IF(SUM($G$13:$G$15)>0,SUM(($G$13*E22)+($G$14*E23)+($G$15*E24)),0)) ->  | N24: =IF(K21=1,"",IF(SUM($G$13:$G$15)>0,SUM(($G$13*G22)+($G$14*G23)+($G$15*G24)),0)) ->  | O24: =IF(K21=1,"",IF(SUM($G$13:$G$15)>0,SUM(($G$13*I22)+($G$14*I23)+($G$15*I24)),0)) -> 
A25: DHMO Enrollment
A26: Single | C26: =_xlfn.IFNA(IF(K20=1,"",VLOOKUP(AreaSIC_SelectionHMO,List_RateTable_HMO,2,FALSE)),"") ->  | E26: =_xlfn.IFNA(IF(K21=1,"",VLOOKUP(AreaSIC_SelectionHMO,List_RateTable_HMO,5,FALSE)),"") ->  | G26: =_xlfn.IFNA(IF(K21=1,"",VLOOKUP(AreaSIC_SelectionHMO,List_RateTable_HMO,5,FALSE)),"") ->  | I26: =_xlfn.IFNA(IF(K21=1,"",VLOOKUP(AreaSIC_SelectionHMO,List_RateTable_HMO,8,FALSE)),"") -> 
A27: Two Party | C27: =_xlfn.IFNA(IF(K20=1,"",VLOOKUP(AreaSIC_SelectionHMO,List_RateTable_HMO,3,FALSE)),"") ->  | E27: =_xlfn.IFNA(IF(K21=1,"",VLOOKUP(AreaSIC_SelectionHMO,List_RateTable_HMO,6,FALSE)),"") ->  | G27: =_xlfn.IFNA(IF(K21=1,"",VLOOKUP(AreaSIC_SelectionHMO,List_RateTable_HMO,6,FALSE)),"") ->  | I27: =_xlfn.IFNA(IF(K21=1,"",VLOOKUP(AreaSIC_SelectionHMO,List_RateTable_HMO,9,FALSE)),"") -> 
A28: Three Party+ | C28: =_xlfn.IFNA(IF(K20=1,"",VLOOKUP(AreaSIC_SelectionHMO,List_RateTable_HMO,4,FALSE)),"") ->  | E28: =_xlfn.IFNA(IF(K21=1,"",VLOOKUP(AreaSIC_SelectionHMO,List_RateTable_HMO,7,FALSE)),"") ->  | G28: =_xlfn.IFNA(IF(K21=1,"",VLOOKUP(AreaSIC_SelectionHMO,List_RateTable_HMO,7,FALSE)),"") ->  | I28: =_xlfn.IFNA(IF(K21=1,"",VLOOKUP(AreaSIC_SelectionHMO,List_RateTable_HMO,10,FALSE)),"") ->  | L28: =IF(K20=1,"",IF(SUM($H$13:$H$15)>0,SUM(($H$13*C26)+($H$14*C27)+($H$15*C28)),0)) ->  | M28: =IF(K21=1,"",IF(SUM($H$13:$H$15)>0,SUM(($H$13*E26)+($H$14*E27)+($H$15*E28)),0)) ->  | N28: =IF(K21=1,"",IF(SUM($H$13:$H$15)>0,SUM(($H$13*G26)+($H$14*G27)+($H$15*G28)),0)) ->  | O28: =IF(K21=1,"",IF(SUM($H$13:$H$15)>0,SUM(($H$13*I26)+($H$14*I27)+($H$15*I28)),0)) -> 
A29: Total Cost | C29: =IFERROR(IF(K20=1,"",SUM(L24+L28)),"") ->  | E29: =IFERROR(IF(K21=1,"",SUM(M24+M28)),"") ->  | G29: =IFERROR(IF(K21=1,"",SUM(N24+N28)),"") ->  | I29: =IFERROR(IF(K21=1,"",SUM(O24+O28)),"") -> 
A31: Benefit Comparison
C33: Good | E33: Better | G33: Better Plus | I33: Best
C34: In Network | D34: Out of Network | E34: In Network | F34: Out of Network | G34: In Network | H34: Out of Network | I34: In Network | J34: Out of Network
A35: DPPO - Delta Dental | C35: Delta Dental DPPO4 | G35: Delta Dental DPPO + Premier5
A36: Calendar Maximum (Per Patient) | C36: $1,000 | D36: $750 | E36: $1,500 | F36: $1,250 | G36: $1,500 | H36: $1,250 | I36: $2,000 | J36: $1,500
A37: Deductible (Per Patient) | C37: $50 | D37: $75 | E37: $50 | F37: $75 | G37: $50 | H37: $75 | I37: $50 | J37: $75
A38: Deductible Waived for Diagnostic & Preventive | C38: Yes | D38: No | E38: Yes | F38: No | G38: Yes | H38: No | I38: Yes
A39: Diagnostic and Preventive Services | C39: 100% | D39: 50% | E39: 100% | F39: 80% | G39: 100% | H39: 80% | I39: 100%
A40: Basic, Oral Surgery, Endodontics and Periodontics | C40: 80% | D40: 50% | E40: 80% | G40: 80% | I40: 80%
A41: Major Services | C41: 50% | E41: 50% | G41: 50% | I41: 50%
A42: Orthodontics-Children Only (Available to groups 5+ enrolled) | C42: Not available | E42: 50% lifetime max $1,000 | G42: 50% lifetime max $1,000 | I42: 50% lifetime max $1,000
A43: DHMO - DeltaCare® USA | C43: DeltaCare® USA Plan 13B
A44: Calendar Maximum (Per Patient) | C44: None | J44: None
A45: Deductible (Per Patient) | C45: None | J45: None
A46: Diagnostic & Preventive | C46: Exams, x-rays, cleanings, and flouride treatments | J46: No cost
A47: Basic Restorative | C47: Fillings (amalgam cost per surface) | J47: No cost
A48: Periodontics | C48: Scaling and Root planing | J48: $50 copay
A49: Endodontics | C49: Root canal – anterior teeth (excluding final restoration) Root canal – molar (excluding final restoration) | J49: $95 copay $335 copay
A50: Oral Surgery | C50: Extraction, erupted tooth or exposed root Surgical removal of erupted tooth requiring removal of bone or sectioning of tooth Removal of impacted tooth – completely boney | J50: $5 copay $45 copay $95 copay
A51: Prosthodontics | C51: Crown – porcelain fused to high noble metal; full cast high noble metal Complete denture – maxillary Maxillary partial denture – resin base | J51: $355 copay $285 copay $245 copay
A52: Orthodontics | C52: Child Adult | J52: $1,900 copay $2,100 copay
C53: Good | E53: Better | G53: Better Plus | I53: Best
A54: Vision - Vision Service Plan
A55: Annual Copayment | C55: $25 exam/$25 materials | E55: $10 exam/$25 materials | G55: $10 exam/$25 materials | I55: $10 exam/$25 materials
A56: Eye Exam | C56: Covered in full* | D56: Reimbursed up to $45 | E56: Covered in full* | F56: Reimbursed up to $45 | G56: Covered in full* | H56: Reimbursed up to $45 | I56: Covered in full* | J56: Reimbursed up to $45
A57: Single-vision Lenses | C57: Covered in full* | D57: Reimbursed up to $30 | E57: Covered in full* | F57: Reimbursed up to $30 | G57: Covered in full* | H57: Reimbursed up to $30 | I57: Covered in full* | J57: Reimbursed up to $30
A58: Bifocal Lenses | C58: Covered in full* | D58: Reimbursed up to $50 | E58: Covered in full* | F58: Reimbursed up to $50 | G58: Covered in full* | H58: Reimbursed up to $50 | I58: Covered in full* | J58: Reimbursed up to $50
A59: Trifocal Lenses | C59: Covered in full* | D59: Reimbursed up to $65 | E59: Covered in full* | F59: Reimbursed up to $65 | G59: Covered in full* | H59: Reimbursed up to $65 | I59: Covered in full* | J59: Reimbursed up to $65
A60: Frames | C60: $150 allowance | D60: Reimbursed up to $70 | E60: $150 allowance | F60: Reimbursed up to $70 | G60: $150 allowance | H60: Reimbursed up to $70 | I60: $150 allowance | J60: Reimbursed up to $70
A61: Contact Lenses | C61: $150 allowance | D61: Reimbursed up to $105 | E61: $150 allowance | F61: Reimbursed up to $105 | G61: $150 allowance | H61: Reimbursed up to $105 | I61: $150 allowance | J61: Reimbursed up to $105
A62: Vision - Frequency
A63: Eye Exam | C63: 12 months | E63: 12 months | G63: 12 months | I63: 12 months
A64: Lenses | C64: 24 months | E64: 12 months | G64: 12 months | I64: 12 months
A65: Frames | C65: 24 months | E65: 24 months | G65: 24 months | I65: 12 months
A66: Contact Lenses (in lieu of lenses and a frame) | C66: 24 months | E66: 12 months | G66: 12 months | I66: 12 months
A67: Life - UNUM
A68: Basic Group Term Life with AD&D and EAP | C68: =IF($B$16="Standard Life Amount","$15,000 policy",$B$16) -> $15,000 policy | E68: =IF($B$16="Standard Life Amount","$20,000 policy",$B$16) -> $20,000 policy | G68: =IF($B$16="Standard Life Amount","$20,000 policy",$B$16) -> $20,000 policy | I68: =IF($B$16="Standard Life Amount","$25,000 policy",$B$16) -> $25,000 policy
A69: 1 Groups of 4 may elect CoPower ONE Good, with 2 enrolled employees on the DPPO plan and a minimum of 2 on the DHMO plan. Dual Choice with CoPower ONE Better, Better Plus, and Best plans requires a minimum of 5 enrolled emplolyees on the DPPO plan and a minimum of 2 on the DHMO plan. Bundles cannot be mixed. CoPower ONE Good DPPO will pair with CoPower ONE Good DHMO. Better Plus DPPO will pair with Better DHMO.
A70: 2 2-year rate guarantee
A71: 3 Employers with 10 or more enrolling employees have the option of substituting the standard group term life policy amounts with either a $50,000, $100,000 or $150,000 policy for an additional charge
A72: 4 Delta Dental DPPO: All dentists (in- and out-of-network) are reimbursed at the lesser of the submitted charge or the PPO provider allowed fee.
A73: 5 Delta Dental DPPO + Premier: DPPO dentists are reimbursed at the lesser of the submitted charge or the DPPO provider allowed fee. Delta Dental Premier dentists are reimbursed at the lesser of the submitted charge or the Premier provider allowed fee. Non-contracted dentists are reimbursed at the lesser of the submitted charge or the fee that satisfies the majority of dentists with the same training and geographical area.
A74: * After Copay
A76: Presented by
A78: **Enter your contact information here.** | H78: License #
A79: This document is not meant to replace a quote and does not include all exclusions, limitations or program guidelines. While the information and rates provided here are believed to be accurate as of the print date, they are subject to change without notice. For the most up-to-date information, contact CoPower. CoPower ONE plans are not available to groups currently insured with UNUM.

Sheet CoPower ONE Vol
I5: =IF(AND(VOL_EligibleEEs<>"Enter your group size",GroupSize_DualVOLTotal>VOL_EligibleEEs),"Total enrolling employees higher than eligible employees. Change eligible or enrolling employees.","") -> 
K6: <= Enrolled vs Eligible Check (If Enrolled > Eligible)
L7: =IF(OR(I10<>"",I5<>""),1,0) -> 0 | M7: PPO W/O Ortho
L8: =IF(OR(VOL_EligibleEEs="Enter your group size",GroupSize_DualVOLTotal=0,F25="DPPO With Ortho (Not Available)",I11<>"",I10<>"",I5<>""),1,0) -> 1 | M8: PPO W Ortho
A9: Company Information | L9: =IF(OR(I13<>"",I5<>""),1,0) -> 0 | M9: DHMO
A10: Company Name: | I10: =IF(OR(VOL_EligibleEEs="Enter your group size",GroupSize_DualVOLTotal=0),"",IF(GroupSize_DualVOLPPO>4,"","CoPower ONE Vol DPPO requires a minimum of 5 enrolled.")) ->  | K10: <= DPPO Check (Minimum 5 Enrolled)
A11: Effective Date: | B11: Select your effective date | I11: =IF(OR(VOL_EligibleEEs="Enter your group size",GroupSize_DualVOLTotal=0),"",IF(GroupSize_DualVOLPPO>24,"","CoPower ONE Vol DPPO with Ortho requires a minimum of 25 enrolled.")) ->  | K11: <= DPPO Ortho Check (Minimum 25 Enrolled)
A12: Eligible Employees: | B12: Enter your group size | E12: =SUM(GroupSize_DualVOLPPO+GroupSize_DualVOLHMO) -> 0 | F12: Enrolling Employees
A13: DHMO Region: | B13: Select your CA DHMO Region | F13: DPPO | G13: DHMO | I13: =IF(OR(VOL_EligibleEEs="Enter your group size",GroupSize_DualVOLTotal=0),"",IF(GroupSize_DualVOLHMO>1,"","CoPower ONE Vol DHMO requires a minimum of 2 enrolled.")) -> 
A14: DPPO Child Ortho Available? | B14: =IF(VOL_EligibleEEs="Enter your group size","Enter Eligible & Enrolling EEs",IF(GroupSize_DualVOLTotal=0,"Enter Enrolling EEs",IF(L8=1,"Not Available","Available"))) -> Enter Eligible & Enrolling EEs | D14: Number of Single | F14: 0 | G14: 0 | K14: <= DHMO Check (Minimum 2 Enrolled)
D15: Number of Two Party | F15: 0 | G15: 0 | I15: =IF(OR(AND(VOL_EligibleEEs>9,GroupSize_DualVOLTotal>9,GroupSize_DualVOLPPO>4,GroupSize_DualVOLHMO>1),AND(VOL_EligibleEEs>9,GroupSize_DualVOLTotal>9,GroupSize_DualVOLPPO>4,GroupSize_DualVOLHMO>1)),"CoPower ONE Vol Dual Choice is available. For cost comparison use 'Vol Dual Choice' tab.","") -> 
D16: Number of Three Party+ | F16: 0 | G16: 0
D17: Total Enrolling Employees | F17: =SUM(F14+F15+F16) -> 0 | G17: =SUM(G14+G15+G16) -> 0
A21: Cost Comparison - Monthly Rates
B24: =IF(OR(VOL_EligibleEEs="Enter your group size",GroupSize_DualVOLTotal=0,L9=1),"",Region_VOL_HMO) ->  | C24: CoPower ONE Voluntary
A25: DPPO Voluntary Enrollment | C25: DPPO Without Ortho | F25: =IF(OR(VOL_EligibleEEs="Enter your group size",GroupSize_DualVOLTotal=0),"DPPO With Ortho",IF(OR(GroupSize_DualVOLPPO<25,VOL_EligibleEEs<25),"DPPO With Ortho (Not Available)","DPPO With Ortho")) -> DPPO With Ortho
A26: Single | C26: =IF(OR(VOL_EligibleEEs="Enter your group size",GroupSize_DualVOLTotal=0,L7=1),"",_xlfn.IFNA(VLOOKUP("Without Ortho",List_RateTable_VOLPPO,2,FALSE),"")) ->  | F26: =IF(L8=1,"",_xlfn.IFNA(VLOOKUP("With Ortho",List_RateTable_VOLPPO,2,FALSE),"")) -> 
A27: Two Party | C27: =IF(OR(VOL_EligibleEEs="Enter your group size",GroupSize_DualVOLTotal=0,L7=1),"",_xlfn.IFNA(VLOOKUP("Without Ortho",List_RateTable_VOLPPO,3,FALSE),"")) ->  | F27: =IF(L8=1,"",_xlfn.IFNA(VLOOKUP("With Ortho",List_RateTable_VOLPPO,3,FALSE),"")) -> 
A28: Three Party+ | C28: =IF(OR(VOL_EligibleEEs="Enter your group size",GroupSize_DualVOLTotal=0,L7=1),"",_xlfn.IFNA(VLOOKUP("Without Ortho",List_RateTable_VOLPPO,4,FALSE),"")) ->  | F28: =IF(L8=1,"",_xlfn.IFNA(VLOOKUP("With Ortho",List_RateTable_VOLPPO,4,FALSE),"")) -> 
A29: Total Cost-DPPO Only | C29: =IF(C26="","",IFERROR(IF(L7=1,"",SUM(L29)),"")) ->  | F29: =IF(F26="","",IFERROR(IF(L8=1,"",SUM(M29)),"")) ->  | L29: =IFERROR(IF(L7=1,"",IF(GroupSize_DualVOLPPO>0,SUM(($F$14*C26)+($F$15*C27)+($F$16*C28)),0)),"") -> 0 | M29: =IFERROR(IF(L8=1,"",IF(GroupSize_DualVOLPPO>0,SUM(($F$14*F26)+($F$15*F27)+($F$16*F28)),0)),"") -> 
A31: DHMO Voluntary Enrollment
A32: Single | C32: =IF(L9=1,"",_xlfn.IFNA(VLOOKUP(AreaSIC_SelectionVOLHMO,List_RateTable_VOLHMO,2,FALSE),"")) ->  | F32: =IF(OR(F25="DPPO With Ortho (Not Available)",L9=1),"",_xlfn.IFNA(VLOOKUP(AreaSIC_SelectionVOLHMO,List_RateTable_VOLHMO,2,FALSE),"")) -> 
A33: Two Party | C33: =IF(L9=1,"",_xlfn.IFNA(VLOOKUP(AreaSIC_SelectionVOLHMO,List_RateTable_VOLHMO,3,FALSE),"")) ->  | F33: =IF(OR(F25="DPPO With Ortho (Not Available)",L9=1),"",_xlfn.IFNA(VLOOKUP(AreaSIC_SelectionVOLHMO,List_RateTable_VOLHMO,3,FALSE),"")) -> 
A34: Three Party+ | C34: =IF(L9=1,"",_xlfn.IFNA(VLOOKUP(AreaSIC_SelectionVOLHMO,List_RateTable_VOLHMO,4,FALSE),"")) ->  | F34: =IF(OR(F25="DPPO With Ortho (Not Available)",L9=1),"",_xlfn.IFNA(VLOOKUP(AreaSIC_SelectionVOLHMO,List_RateTable_VOLHMO,4,FALSE),"")) -> 
A35: Total Cost-DHMO Only | C35: =IF(C32="","",IFERROR(IF(L9=1,"",SUM(L35)),"")) ->  | F35: =IF(F32="","",IFERROR(IF(OR(F25="With Ortho (Not Available)",L9=1),"",SUM(M35)),"")) ->  | L35: =IFERROR(IF(L9=1,"",IF(GroupSize_DualVOLHMO>0,SUM(($G$14*C32)+($G$15*C33)+($G$16*C34)),0)),"") -> 0 | M35: =IFERROR(IF(L9=1,"",IF(GroupSize_DualVOLHMO>0,SUM(($G$14*F32)+($G$15*F33)+($G$16*F34)),0)),"") -> 0
A37: Benefit Comparison
C39: CoPower ONE Voluntary DPPO
C40: DPPO Dentists | F40: Non-DPPO Dentists
A41: DPPO Vol - Delta Dental | C41: Delta Dental DPPO2
A42: Calendar Year Max (per patient) | C42: $1,500 | F42: $1,250
A43: Calendar Year Deductible (per patient) | C43: $50 | F43: $75
A44: Deductible Waived for Diagnostic & Preventive | C44: Yes | F44: No
A45: Diagnostic and Preventive Services | B45: First 12 Months | C45: 100% | F45: 80%
A46: Basic Services (Sealants, Simple Restorations, & Simple Extractions) | C46: 80%
A47: Oral Surgery, Endodontics and Periodontics | B47: Second 12 Months | C47: 50%
A48: Major Services | C48: 50%
A49: Orthodontics-Children Only (Available to groups with 25+ enrolled) | C49: =IF(OR(GroupSize_DualVOLPPO<25,VOL_EligibleEEs<25,L8=1),"Not Available (Ortho option only available for groups with 25+ DPPO enrollees)","Ortho option available for groups with 25+ DPPO enrollees - 50% lifetime max $1,000") -> Not Available (Ortho option only available for groups with 25+ DPPO enrollees)
C51: CoPower ONE Voluntary DHMO
A52: DHMO Vol - DeltaCare® USA | C52: DeltaCare® USA Plan 13B
A53: Calendar Maximum | C53: None | G53: None
A54: Deductible | C54: None | G54: None
A55: Diagnostic & Preventive | C55: Exams, x-rays, cleanings, and flouride treatments | G55: No cost
A56: Restorative | C56: Fillings (amalgam cost per surface) Crown – porcelain fused to high noble metal; full cast high noble metal | G56: No cost $355 copay
A57: Periodontics | C57: Periodontic scaling & root planing—four or more teeth per quadrant | G57: $50 copay
A58: Endodontics | C58: Root canal – anterior teeth (excluding final restoration) Root canal – molar (excluding final restoration) | G58: $95 copay $335 copay
A59: Oral Surgery | C59: Extraction, erupted tooth or exposed root Removal of impacted tooth – completely boney | G59: $5 copay $95 copay
A60: Prosthodontics | C60: Complete denture – maxillary Maxillary partial denture – resin base | G60: $285 copay $245 copay
A61: Orthodontics | C61: Child Adult | G61: $1,900 copay $2,100 copay
C64: CoPower ONE Voluntary
A65: Vision - Vision Service Plan | C65: In Network | F65: Out of Network
A66: Annual Copayment | C66: $10 exam/$25 materials
A67: Eye Exam | C67: Covered in full* | F67: Reimbursed up to $45
A68: Single-Vision Lenses | C68: Covered in full* | F68: Reimbursed up to $30
A69: Bifocal Lenses | C69: Covered in full* | F69: Reimbursed up to $50
A70: Trifocal Lenses | C70: Covered in full* | F70: Reimbursed up to $65
A71: Frames | C71: $150 allowance | F71: Reimbursed up to $70
A72: Contact Lenses | C72: $150 allowance | F72: Reimbursed up to $105
A73: Vision - Frequency
A74: Eye Exam | C74: 12 months
A75: Lenses | C75: 12 months
A76: Frames | C76: 24 months
A77: Contact Lenses (in lieu of lenses and a frame) | C77: 12 months
A78: Life - UNUM
A79: Basic Group Term Life with AD&D and EAP | C79: N/A
A81: 1 2-year rate guarantee
A82: 2 Delta Dental DPPO: All dentists (in- and out-of-network) are reimbursed at the lesser of the submitted charge or the DPPO provider's contracted fee.
A83: * After Copay
A85: Presented by
A87: **Enter your contact information here.** | F87: License #
A89: This document is not meant to replace a quote and does not include all exclusions, limitations or program guidelines. While the information and rates provided here are believed to be accurate as of the print date, they are subject to change without notice. For the most up-to-date information, contact CoPower. CoPower ONE plans are not available to groups currently insured with UNUM.

Sheet CoPower ONE Vol Dual Choice
I6: =IF(AND(VOL_EligibleEEs<>"Enter your group size",GroupSize_DualVOLTotal>VOL_EligibleEEs),"Total enrolling employees higher than eligible employees. Change eligible or enrolling employees.","") ->  | K6: <= Enrolled vs Eligible Check (If Enrolled > Eligible)
L7: =IF(OR(I9<>"",I6<>""),1,0) -> 0 | M7: PPO W/O Ortho
L8: =IF(OR(VOL_EligibleEEs="Enter your group size",GroupSize_DualVOLTotal=0,F25="DPPO With Ortho (Not Available)",I11<>"",I6<>""),1,0) -> 1 | M8: PPO W Ortho
A9: Company Information | I9: =IF(OR(VOL_EligibleEEs="Enter your group size",GroupSize_DualVOLTotal=0),"",IF(AND(I6="",VOL_EligibleEEs>4,GroupSize_DualVOLPPO>4),"CoPower ONE Vol DPPO (Without Dual Choice) is available. For cost comparison use 'CoPower ONE Vol' tab.","")) ->  | L9: =IF(OR(I13<>"",I6<>""),1,0) -> 0 | M9: DHMO
A10: Company Name: | K10: <= DPPO Check (Minimum 5 Enrolled) | L10: =IF(OR(I16<>"",I6<>""),1,0) -> 0 | M10: Dual Choice
A11: Effective Date: | B11: Select your effective date | I11: =IF(OR(VOL_EligibleEEs="Enter your group size",GroupSize_DualVOLTotal=0),"",IF(GroupSize_DualVOLPPO>24,"","CoPower ONE Vol DPPO with Ortho requires a minimum of 25 enrolled.")) ->  | K11: <= DPPO Ortho Check (Minimum 25 Enrolled)
A12: Eligible Employees: | B12: Enter your group size | E12: =SUM(GroupSize_DualVOLPPO+GroupSize_DualVOLHMO) -> 0 | F12: Enrolling Employees
A13: DHMO Region: | B13: Select your CA DHMO Region | F13: DPPO | G13: DHMO | I13: =IF(OR(VOL_EligibleEEs="Enter your group size",GroupSize_DualVOLTotal=0),"",IF(AND(I6="",GroupSize_DualVOLHMO>1),"CoPower ONE Vol DHMO (Without Dual Choice) is available. For cost comparison use 'CoPower ONE Vol' tab.","")) -> 
A14: Dual Choice Available? | B14: =IF(VOL_EligibleEEs="Enter your group size","Enter Eligible & Enrolling EEs",IF(GroupSize_DualVOLTotal=0,"Enter Enrolling EEs",IF(L10=1,"Not Available","Available"))) -> Enter Eligible & Enrolling EEs | D14: Number of Single | F14: 0 | G14: 0 | K14: <= DHMO Check (Minimum 2 Enrolled)
A15: DPPO Child Ortho Available? | B15: =IF(VOL_EligibleEEs="Enter your group size","Enter Eligible & Enrolling EEs",IF(GroupSize_DualVOLTotal=0,"Enter Enrolling EEs",IF(L8=1,"Not Available","Available"))) -> Enter Eligible & Enrolling EEs | D15: Number of Two Party | F15: 0 | G15: 0 | K15: <= Dual Choice: 10 total enrolled, 5 on one plan check
D16: Number of Three Party+ | F16: 0 | G16: 0 | I16: =IF(OR(GroupSize_DualVOLTotal=0,VOL_EligibleEEs="Enter your group size"),"",IF(GroupSize_DualVOLTotal<10,"CoPower ONE Vol Dual Choice requires minimum of 10 enrolled, with minimum of 5 enrolled in one plan and remainder in the other.",IF(OR(AND(GroupSize_DualVOLTotal>9,GroupSize_DualVOLPPO>4,GroupSize_DualVOLHMO>1),(AND(GroupSize_DualVOLTotal>9,GroupSize_DualVOLPPO>1,GroupSize_DualVOLHMO>4))),"","CoPower ONE Vol Dual Choice requires minimum of 10 enrolled, with minimum of 5 enrolled in one plan and remainder in the other."))) -> 
D17: Total Enrolling Employees | F17: =SUM(F14+F15+F16) -> 0 | G17: =SUM(G14+G15+G16) -> 0
A21: Cost Comparison - Monthly Rates
B24: =IF(OR(VOL_EligibleEEs="Enter your group size",GroupSize_DualVOLTotal=0,L10=1),"",Region_VOL_HMO) ->  | C24: CoPower ONE Voluntary - Dual Choice
A25: DPPO Voluntary Enrollment | C25: DPPO Without Ortho | F25: =IF(OR(VOL_EligibleEEs="Enter your group size",GroupSize_DualVOLTotal=0),"DPPO With Ortho",IF(OR(GroupSize_DualVOLPPO<25,VOL_EligibleEEs<25,I6<>""),"DPPO With Ortho (Not Available)","DPPO With Ortho")) -> DPPO With Ortho
A26: Single | C26: =IF(OR(VOL_EligibleEEs="Enter your group size",GroupSize_DualVOLTotal=0,L10=1),"",_xlfn.IFNA(VLOOKUP("Without Ortho",List_RateTable_VOLPPO,2,FALSE),"")) ->  | F26: =IF(OR(VOL_EligibleEEs="Enter your group size",GroupSize_DualVOLTotal=0,L10=1,L8=1),"",_xlfn.IFNA(VLOOKUP("With Ortho",List_RateTable_VOLPPO,2,FALSE),"")) -> 
A27: Two Party | C27: =IF(OR(VOL_EligibleEEs="Enter your group size",GroupSize_DualVOLTotal=0,L10=1),"",_xlfn.IFNA(VLOOKUP("Without Ortho",List_RateTable_VOLPPO,3,FALSE),"")) ->  | F27: =IF(OR(VOL_EligibleEEs="Enter your group size",GroupSize_DualVOLTotal=0,L10=1,L8=1),"",_xlfn.IFNA(VLOOKUP("With Ortho",List_RateTable_VOLPPO,3,FALSE),"")) -> 
A28: Three Party+ | C28: =IF(OR(VOL_EligibleEEs="Enter your group size",GroupSize_DualVOLTotal=0,L10=1),"",_xlfn.IFNA(VLOOKUP("Without Ortho",List_RateTable_VOLPPO,4,FALSE),"")) ->  | F28: =IF(OR(VOL_EligibleEEs="Enter your group size",GroupSize_DualVOLTotal=0,L10=1,L8=1),"",_xlfn.IFNA(VLOOKUP("With Ortho",List_RateTable_VOLPPO,4,FALSE),"")) -> 
A29: Total Cost-DPPO | C29: =IF(C26="","",IFERROR(IF(L10=1,"",SUM(L29)),"")) ->  | F29: =IF(F26="","",IFERROR(IF(OR(L8=1,L10=1),"",SUM(M29)),"")) ->  | L29: =IFERROR(IF(L10=1,"",IF(GroupSize_DualVOLPPO>0,SUM(($F$14*C26)+($F$15*C27)+($F$16*C28)),0)),"") -> 0 | M29: =IFERROR(IF(OR(L8=1,L10=1),"",IF(GroupSize_DualVOLPPO>0,SUM(($F$14*F26)+($F$15*F27)+($F$16*F28)),0)),"") -> 
A31: DHMO Voluntary Enrollment
A32: Single | C32: =IF(L10=1,"",_xlfn.IFNA(VLOOKUP(AreaSIC_SelectionVOLHMO,List_RateTable_VOLHMO,2,FALSE),"")) ->  | F32: =IF(OR(F25="DPPO With Ortho (Not Available)",L10=1),"",_xlfn.IFNA(VLOOKUP(AreaSIC_SelectionVOLHMO,List_RateTable_VOLHMO,2,FALSE),"")) -> 
A33: Two Party | C33: =IF(L10=1,"",_xlfn.IFNA(VLOOKUP(AreaSIC_SelectionVOLHMO,List_RateTable_VOLHMO,3,FALSE),"")) ->  | F33: =IF(OR(F25="DPPO With Ortho (Not Available)",L10=1),"",_xlfn.IFNA(VLOOKUP(AreaSIC_SelectionVOLHMO,List_RateTable_VOLHMO,3,FALSE),"")) -> 
A34: Three Party+ | C34: =IF(L10=1,"",_xlfn.IFNA(VLOOKUP(AreaSIC_SelectionVOLHMO,List_RateTable_VOLHMO,4,FALSE),"")) ->  | F34: =IF(OR(F25="DPPO With Ortho (Not Available)",L10=1),"",_xlfn.IFNA(VLOOKUP(AreaSIC_SelectionVOLHMO,List_RateTable_VOLHMO,4,FALSE),"")) -> 
A35: Total Cost-DHMO | C35: =IF(C32="","",IFERROR(IF(L10=1,"",SUM(L35)),"")) ->  | F35: =IF(F32="","",IFERROR(IF(OR(F25="With Ortho (Not Available)",L10=1),"",SUM(M35)),"")) ->  | L35: =IFERROR(IF(L10=1,"",IF(GroupSize_DualVOLHMO>0,SUM(($G$14*C32)+($G$15*C33)+($G$16*C34)),0)),"") -> 0 | M35: =IFERROR(IF(L10=1,"",IF(GroupSize_DualVOLHMO>0,SUM(($G$14*F32)+($G$15*F33)+($G$16*F34)),0)),"") -> 0
A37: Total Cost-Dual Choice Voluntary | C37: =IF(OR(GroupSize_DualVOLTotal=0),"",IF(L10=1,"Dual Choice Not Available",IFERROR(SUM(C35+C29),""))) ->  | F37: =IF(GroupSize_DualVOLTotal=0,"",IF(L10=1,"Dual Choice Not Available",IFERROR(SUM(F35+F29),""))) -> 
A39: Benefit Comparison
C41: CoPower ONE Voluntary DPPO
C42: DPPO Dentists | F42: Non-DPPO Dentists
A43: DPPO Vol - Delta Dental | C43: Delta Dental DPPO3
A44: Calendar Year Max (per patient) | C44: $1,500 | F44: $1,250
A45: Calendar Year Deductible (per patient) | C45: $50 | F45: $75
A46: Deductible Waived for Diagnostic & Preventive | C46: Yes | F46: No
A47: Diagnostic and Preventive Services | B47: First 12 Months | C47: 100% | F47: 80%
A48: Basic Services (Sealants, Simple Restorations, & Simple Extractions) | C48: 80%
A49: Oral Surgery, Endodontics and Periodontics | B49: Second 12 Months | C49: 50%
A50: Major Services | C50: 50%
A51: Orthodontics-Children Only (Available to groups with 25+ enrolled) | C51: =IF(OR(GroupSize_DualVOLPPO<25,VOL_EligibleEEs<25,L8=1),"Not Available (Ortho option only available for groups with 25+ DPPO enrollees)","Ortho option available for groups with 25+ DPPO enrollees - 50% lifetime max $1,000") -> Not Available (Ortho option only available for groups with 25+ DPPO enrollees)
C53: CoPower ONE Voluntary DHMO
A54: DHMO Vol - DeltaCare® USA | C54: DeltaCare® USA Plan 13B
A55: Calendar Maximum | C55: None | G55: None
A56: Deductible | C56: None | G56: None
A57: Diagnostic & Preventive | C57: Exams, x-rays, cleanings, and flouride treatments | G57: No cost
A58: Restorative | C58: Fillings (amalgam cost per surface) Crown – porcelain fused to high noble metal; full cast high noble metal | G58: No cost $355 copay
A59: Periodontics | C59: Periodontic scaling & root planing—four or more teeth per quadrant | G59: $50 copay
A60: Endodontics | C60: Root canal – anterior teeth (excluding final restoration) Root canal – molar (excluding final restoration) | G60: $95 copay $335 copay
A61: Oral Surgery | C61: Extraction, erupted tooth or exposed root Removal of impacted tooth – completely boney | G61: $5 copay $95 copay
A62: Prosthodontics | C62: Complete denture – maxillary Maxillary partial denture – resin base | G62: $285 copay $245 copay
A63: Orthodontics | C63: Child Adult | G63: $1,900 copay $2,100 copay
C66: CoPower ONE Voluntary
A67: Vision - Vision Service Plan | C67: In Network | F67: Out of Network
A68: Annual Copayment | C68: $10 exam/$25 materials
A69: Eye Exam | C69: Covered in full* | F69: Reimbursed up to $45
A70: Single-Vision Lenses | C70: Covered in full* | F70: Reimbursed up to $30
A71: Bifocal Lenses | C71: Covered in full* | F71: Reimbursed up to $50
A72: Trifocal Lenses | C72: Covered in full* | F72: Reimbursed up to $65
A73: Frames | C73: $150 allowance | F73: Reimbursed up to $70
A74: Contact Lenses | C74: $150 allowance | F74: Reimbursed up to $105
A75: Vision - Frequency
A76: Eye Exam | C76: 12 months
A77: Lenses | C77: 12 months
A78: Frames | C78: 24 months
A79: Contact Lenses (in lieu of lenses and a frame) | C79: 12 months
A80: Life - UNUM
A81: Basic Group Term Life with AD&D and EAP | C81: N/A
A83: 1 Dual choice voluntary Delta Dental DPPO and DeltaCare® USA DHMO available for groups of 10+ enrolling - minimum of 5 enrolled in one plan and remainder in the other
A84: 2 2-year rate guarantee
A85: 3 Delta Dental DPPO: All dentists (in- and out-of-network) are reimbursed at the lesser of the submitted charge or the DPPO provider's contracted fee.
A86: * After Copay
A88: Presented by
A90: **Enter your contact information here.** | F90: License #
A92: This document is not meant to replace a quote and does not include all exclusions, limitations or program guidelines. While the information and rates provided here are believed to be accurate as of the print date, they are subject to change without notice. For the most up-to-date information, contact CoPower. CoPower ONE plans are not available to groups currently insured with UNUM.

Sheet Lists (hidden)
A1: List_Area_PPO | B1: List_SIC | D1: List_RateTable_PPO | E1: GOOD | H1: BETTER | K1: BETTER PLUS | N1: BEST
A2: Select your CA PPO Region | B2: Select your SIC Level | D2: Region 21Standard Life Amount5-9 | E2: 45 | F2: 82.5 | G2: 124 | H2: 55.5 | I2: 104.5 | J2: 172.5 | K2: 61.5 | L2: 114 | M2: 190.5 | N2: 76 | O2: 141.5 | P2: 231
A3: Region 1 | B3: 1 | D3: Region 22Standard Life Amount5-9 | E3: 51.5 | F3: 95 | G3: 143 | H3: 64 | I3: 120 | J3: 198 | K3: 70 | L3: 133.5 | M3: 223 | N3: 87.5 | O3: 163.5 | P3: 268.5
A4: Region 2 | B4: 2 | D4: Region 11Standard Life Amount5-9 | E4: 44 | F4: 77.5 | G4: 117 | H4: 54.5 | I4: 98 | J4: 162.5 | K4: 61.5 | L4: 109.5 | M4: 181.5 | N4: 74 | O4: 133.5 | P4: 220.5
D5: Region 12Standard Life Amount5-9 | E5: 50.5 | F5: 90 | G5: 136.5 | H5: 63 | I5: 114 | J5: 188.5 | K5: 69 | L5: 126.5 | M5: 212.5 | N5: 85.5 | O5: 155.5 | P5: 255
D7: Region 21Standard Life Amount10-49 | E7: 45 | F7: 82.5 | G7: 124 | H7: 55.5 | I7: 104.5 | J7: 172.5 | K7: 61.5 | L7: 114 | M7: 190.5 | N7: 76 | O7: 141.5 | P7: 231
D8: Region 22Standard Life Amount10-49 | E8: 51.5 | F8: 95 | G8: 143 | H8: 64 | I8: 120 | J8: 198 | K8: 70 | L8: 133.5 | M8: 223 | N8: 87.5 | O8: 163.5 | P8: 268.5
D9: Region 11Standard Life Amount10-49 | E9: 44 | F9: 77.5 | G9: 117 | H9: 54.5 | I9: 98 | J9: 162.5 | K9: 61.5 | L9: 109.5 | M9: 181.5 | N9: 74 | O9: 133.5 | P9: 220.5
D10: Region 12Standard Life Amount10-49 | E10: 50.5 | F10: 90 | G10: 136.5 | H10: 63 | I10: 114 | J10: 188.5 | K10: 69 | L10: 126.5 | M10: 212.5 | N10: 85.5 | O10: 155.5 | P10: 255
A12: List_EffDate | B12: List_LifeAmounts | D12: Region 21Standard Life Amount50-99 | E12: 45 | F12: 82.5 | G12: 124 | H12: 55.5 | I12: 104.5 | J12: 172.5 | K12: 61.5 | L12: 114 | M12: 190.5 | N12: 76 | O12: 141.5 | P12: 231
A13: Select your effective date | B13: Standard Life Amount | D13: Region 22Standard Life Amount50-99 | E13: 51.5 | F13: 95 | G13: 143 | H13: 64 | I13: 120 | J13: 198 | K13: 70 | L13: 133.5 | M13: 223 | N13: 87.5 | O13: 163.5 | P13: 268.5
A14: 1/1/2023 | B14: Enhanced Life $50,000 | D14: Region 11Standard Life Amount50-99 | E14: 44 | F14: 77.5 | G14: 117 | H14: 54.5 | I14: 98 | J14: 162.5 | K14: 61.5 | L14: 109.5 | M14: 181.5 | N14: 74 | O14: 133.5 | P14: 220.5
A15: 2/1/2023 | B15: Enhanced Life $100,000 | D15: Region 12Standard Life Amount50-99 | E15: 50.5 | F15: 90 | G15: 136.5 | H15: 63 | I15: 114 | J15: 188.5 | K15: 69 | L15: 126.5 | M15: 212.5 | N15: 85.5 | O15: 155.5 | P15: 255
A16: 3/1/2023 | B16: Enhanced Life $150,000
A17: 4/1/2023 | D17: Region 21Enhanced Life $50,00010-49 | E17: =SUM(E2+$E$74) -> 54.8 | F17: 92.3 | G17: 133.8 | H17: =SUM(H2+$H$74) -> 63.9 | I17: 112.9 | J17: 180.9 | K17: 69.9 | L17: 122.4 | M17: 198.9 | N17: =SUM(N2+$N$74) -> 83 | O17: 148.5 | P17: 238
A18: 5/1/2023 | D18: Region 22Enhanced Life $50,00010-49 | E18: 61.3 | F18: 104.8 | G18: 152.8 | H18: 72.4 | I18: 128.4 | J18: 206.4 | K18: 78.4 | L18: 141.9 | M18: 231.4 | N18: 94.5 | O18: 170.5 | P18: 275.5
A19: 6/1/2023 | D19: Region 11Enhanced Life $50,00010-49 | E19: 53.8 | F19: 87.3 | G19: 126.8 | H19: 62.9 | I19: 106.4 | J19: 170.9 | K19: 69.9 | L19: 117.9 | M19: 189.9 | N19: 81 | O19: 140.5 | P19: 227.5
A20: 7/1/2023 | D20: Region 12Enhanced Life $50,00010-49 | E20: 60.3 | F20: 99.8 | G20: 146.3 | H20: 71.4 | I20: 122.4 | J20: 196.9 | K20: 77.4 | L20: 134.9 | M20: 220.9 | N20: 92.5 | O20: 162.5 | P20: 262
A21: 8/1/2023
A22: 9/1/2023 | D22: Region 21Enhanced Life $100,00010-49 | E22: =SUM(E2+$E$75) -> 68.8 | F22: 106.3 | G22: 147.8 | H22: =SUM(H2+$H$75) -> 77.9 | I22: 126.9 | J22: 194.9 | K22: 83.9 | L22: 136.4 | M22: 212.9 | N22: =SUM(N2+$N$75) -> 97 | O22: 162.5 | P22: 252
A23: 10/1/2023 | D23: Region 22Enhanced Life $100,00010-49 | E23: 75.3 | F23: 118.8 | G23: 166.8 | H23: 86.4 | I23: 142.4 | J23: 220.4 | K23: 92.4 | L23: 155.9 | M23: 245.4 | N23: 108.5 | O23: 184.5 | P23: 289.5
A24: 11/1/2023 | D24: Region 11Enhanced Life $100,00010-49 | E24: 67.8 | F24: 101.3 | G24: 140.8 | H24: 76.9 | I24: 120.4 | J24: 184.9 | K24: 83.9 | L24: 131.9 | M24: 203.9 | N24: 95 | O24: 154.5 | P24: 241.5
A25: 12/1/2023 | D25: Region 12Enhanced Life $100,00010-49 | E25: 74.3 | F25: 113.8 | G25: 160.3 | H25: 85.4 | I25: 136.4 | J25: 210.9 | K25: 91.4 | L25: 148.9 | M25: 234.9 | N25: 106.5 | O25: 176.5 | P25: 276
D27: Region 21Enhanced Life $150,00010-49 | E27: =SUM(E2+$E$76) -> 82.8 | F27: 120.3 | G27: 161.8 | H27: =SUM(H2+$H$76) -> 91.9 | I27: 140.9 | J27: 208.9 | K27: 97.9 | L27: 150.4 | M27: 226.9 | N27: =SUM(N2+$N$76) -> 111 | O27: 176.5 | P27: 266
D28: Region 22Enhanced Life $150,00010-49 | E28: 89.3 | F28: 132.8 | G28: 180.8 | H28: 100.4 | I28: 156.4 | J28: 234.4 | K28: 106.4 | L28: 169.9 | M28: 259.4 | N28: 122.5 | O28: 198.5 | P28: 303.5
A29: List_Area_HMO | B29: List_EligibleEEs | D29: Region 11Enhanced Life $150,00010-49 | E29: 81.8 | F29: 115.3 | G29: 154.8 | H29: 90.9 | I29: 134.4 | J29: 198.9 | K29: 97.9 | L29: 145.9 | M29: 217.9 | N29: 109 | O29: 168.5 | P29: 255.5
A30: Select your CA DHMO Region | B30: Select your group size | D30: Region 12Enhanced Life $150,00010-49 | E30: 88.3 | F30: 127.8 | G30: 174.3 | H30: 99.4 | I30: 150.4 | J30: 224.9 | K30: 105.4 | L30: 162.9 | M30: 248.9 | N30: 120.5 | O30: 190.5 | P30: 290
A31: Region 1 & 2 | B31: 2-9 Employees
A32: Region 3 | B32: 10-99 Employees | D32: Region 21Enhanced Life $50,00050-99 | E32: =SUM(E2+$E$78) -> 52.7 | F32: 90.2 | G32: 131.7 | H32: =SUM(H2+$H$78) -> 62.1 | I32: 111.1 | J32: 179.1 | K32: 68.1 | L32: 120.6 | M32: 197.1 | N32: =SUM(N2+$N$78) -> 81.5 | O32: 147 | P32: 236.5
A33: Region 4 | D33: Region 22Enhanced Life $50,00050-99 | E33: 59.2 | F33: 102.7 | G33: 150.7 | H33: 70.6 | I33: 126.6 | J33: 204.6 | K33: 76.6 | L33: 140.1 | M33: 229.6 | N33: 93 | O33: 169 | P33: 274
A34: Region 5 | D34: Region 11Enhanced Life $50,00050-99 | E34: 51.7 | F34: 85.2 | G34: 124.7 | H34: 61.1 | I34: 104.6 | J34: 169.1 | K34: 68.1 | L34: 116.1 | M34: 188.1 | N34: 79.5 | O34: 139 | P34: 226
D35: Region 12Enhanced Life $50,00050-99 | E35: 58.2 | F35: 97.7 | G35: 144.2 | H35: 69.6 | I35: 120.6 | J35: 195.1 | K35: 75.6 | L35: 133.1 | M35: 219.1 | N35: 91 | O35: 161 | P35: 260.5
D37: Region 21Enhanced Life $100,00050-99 | E37: =SUM(E2+$E$79) -> 63.7 | F37: 101.2 | G37: 142.7 | H37: =SUM(H2+$H$79) -> 73.1 | I37: 122.1 | J37: 190.1 | K37: 79.1 | L37: 131.6 | M37: 208.1 | N37: =SUM(N2+$N$79) -> 92.5 | O37: 158 | P37: 247.5
D38: Region 22Enhanced Life $100,00050-99 | E38: 70.2 | F38: 113.7 | G38: 161.7 | H38: 81.6 | I38: 137.6 | J38: 215.6 | K38: 87.6 | L38: 151.1 | M38: 240.6 | N38: 104 | O38: 180 | P38: 285
D39: Region 11Enhanced Life $100,00050-99 | E39: 62.7 | F39: 96.2 | G39: 135.7 | H39: 72.1 | I39: 115.6 | J39: 180.1 | K39: 79.1 | L39: 127.1 | M39: 199.1 | N39: 90.5 | O39: 150 | P39: 237
D40: Region 12Enhanced Life $100,00050-99 | E40: 69.2 | F40: 108.7 | G40: 155.2 | H40: 80.6 | I40: 131.6 | J40: 206.1 | K40: 86.6 | L40: 144.1 | M40: 230.1 | N40: 102 | O40: 172 | P40: 271.5
D42: Region 21Enhanced Life $150,00050-99 | E42: =SUM(E2+$E$80) -> 74.7 | F42: 112.2 | G42: 153.7 | H42: =SUM(H2+$H$80) -> 84.1 | I42: 133.1 | J42: 201.1 | K42: 90.1 | L42: 142.6 | M42: 219.1 | N42: =SUM(N2+$N$80) -> 103.5 | O42: 169 | P42: 258.5
D43: Region 22Enhanced Life $150,00050-99 | E43: 81.2 | F43: 124.7 | G43: 172.7 | H43: 92.6 | I43: 148.6 | J43: 226.6 | K43: 98.6 | L43: 162.1 | M43: 251.6 | N43: 115 | O43: 191 | P43: 296
D44: Region 11Enhanced Life $150,00050-99 | E44: 73.7 | F44: 107.2 | G44: 146.7 | H44: 83.1 | I44: 126.6 | J44: 191.1 | K44: 90.1 | L44: 138.1 | M44: 210.1 | N44: 101.5 | O44: 161 | P44: 248
D45: Region 12Enhanced Life $150,00050-99 | E45: 80.2 | F45: 119.7 | G45: 166.2 | H45: 91.6 | I45: 142.6 | J45: 217.1 | K45: 97.6 | L45: 155.1 | M45: 241.1 | N45: 113 | O45: 183 | P45: 282.5
A46: List_VolDualChoiceSelection | B46: List_VolOrtho
A47: Select Dual Choice (Required) | B47: Select Ortho (Required) | D47: Region 21Standard Life Amount2-4 | E47: 47.5 | F47: 88 | G47: 132.5 | H47: NOT AVAILABLE
A48: Yes | B48: Without Ortho | D48: Region 22Standard Life Amount2-4 | E48: 55.5 | F48: 102.5 | G48: 154.5
A49: No | B49: With Ortho | D49: Region 11Standard Life Amount2-4 | E49: 47.5 | F49: 83.5 | G49: 127
D50: Region 12Standard Life Amount2-4 | E50: 55.5 | F50: 97.5 | G50: 148
D52: List_RateTable_VOLPPO | E52: ALL PLANS
D53: Region 51With Ortho | E53: X | F53: X | G53: X | H53: X | I53: X | J53: X | K53: X | L53: X | M53: X | N53: X | O53: X | P53: X
D54: Region 52With Ortho | E54: X | F54: X | G54: X | H54: X | I54: X | J54: X | K54: X | L54: X | M54: X | N54: X | O54: X | P54: X
D55: Region 41With Ortho | E55: X | F55: X | G55: X | H55: X | I55: X | J55: X | K55: X | L55: X | M55: X | N55: X | O55: X | P55: X
D56: Region 42With Ortho | E56: X | F56: X | G56: X | H56: X | I56: X | J56: X | K56: X | L56: X | M56: X | N56: X | O56: X | P56: X
D57: Region 31With Ortho | E57: X | F57: X | G57: X | H57: X | I57: X | J57: X | K57: X | L57: X | M57: X | N57: X | O57: X | P57: X
D58: Region 32With Ortho | E58: X | F58: X | G58: X | H58: X | I58: X | J58: X | K58: X | L58: X | M58: X | N58: X | O58: X | P58: X
D59: With Ortho | E59: 58 | F59: 119 | G59: 181.5 | H59: X | I59: X | J59: X | K59: X | L59: X | M59: X | N59: X | O59: X | P59: X
D60: Without Ortho | E60: 58 | F60: 108.5 | G60: 166.5 | H60: X | I60: X | J60: X | K60: X | L60: X | M60: X | N60: X | O60: X | P60: X
D62: Region 51Without Ortho | E62: X | F62: X | G62: X | H62: X | I62: X | J62: X | K62: X | L62: X | M62: X | N62: X | O62: X | P62: X
D63: Region 52Without Ortho | E63: X | F63: X | G63: X | H63: X | I63: X | J63: X | K63: X | L63: X | M63: X | N63: X | O63: X | P63: X
D64: Region 41Without Ortho | E64: X | F64: X | G64: X | H64: X | I64: X | J64: X | K64: X | L64: X | M64: X | N64: X | O64: X | P64: X
D65: Region 42Without Ortho | E65: X | F65: X | G65: X | H65: X | I65: X | J65: X | K65: X | L65: X | M65: X | N65: X | O65: X | P65: X
D66: Region 31Without Ortho | E66: X | F66: X | G66: X | H66: X | I66: X | J66: X | K66: X | L66: X | M66: X | N66: X | O66: X | P66: X
D67: Region 32Without Ortho | E67: X | F67: X | G67: X | H67: X | I67: X | J67: X | K67: X | L67: X | M67: X | N67: X | O67: X | P67: X
D68: Region 1 & 21Without Ortho | E68: X | F68: X | G68: X | H68: X | I68: X | J68: X | K68: X | L68: X | M68: X | N68: X | O68: X | P68: X
D69: Region 1 & 22Without Ortho | E69: X | F69: X | G69: X | H69: X | I69: X | J69: X | K69: X | L69: X | M69: X | N69: X | O69: X | P69: X
D73: Enhanced Life Rates | E73: GOOD | H73: BETTER | K73: BETTER PLUS | N73: BEST
D74: $50,00010-49Enrolled | E74: 9.8 | H74: 8.4 | K74: 8.4 | N74: 7
D75: $100,00010-49Enrolled | E75: 23.8 | H75: 22.4 | K75: 22.4 | N75: 21
D76: $150,00010-49Enrolled | E76: 37.8 | H76: 36.4 | K76: 36.4 | N76: 35
D78: $50,00050-99Enrolled | E78: 7.7 | H78: 6.6 | K78: 6.6 | N78: 5.5
D79: $100,00050-99Enrolled | E79: 18.7 | H79: 17.6 | K79: 17.6 | N79: 16.5
D80: $150,00050-99Enrolled | E80: 29.7 | H80: 28.6 | K80: 28.6 | N80: 27.5
D83: List_RateTable_HMO | E83: GOOD (2-99) | H83: BETTER (5-99) | K83: BEST (5-99)
D84: Region 1 & 2Standard Life Amount2-4 | E84: 26.5 | F84: 40 | G84: 57.5 | H84: 30.5 | I84: 45 | J84: 64.5 | K84: 34.5 | L84: 49 | M84: 71.5
D85: Region 3Standard Life Amount2-4 | E85: 28.5 | F85: 44 | G85: 63.5 | H85: 32.5 | I85: 49 | J85: 71.5 | K85: 36.5 | L85: 53 | M85: 77.5
D86: Region 4Standard Life Amount2-4 | E86: 30.5 | F86: 46 | G86: 67 | H86: 34.5 | I86: 51 | J86: 74 | K86: 38.5 | L86: 56 | M86: 80
D87: Region 5Standard Life Amount2-4 | E87: 69 | F87: 109 | G87: 160.5 | H87: 73 | I87: 114 | J87: 167.5 | K87: 76 | L87: 118 | M87: 173.5
D89: Region 1 & 2Standard Life Amount5-9 | E89: 26.5 | F89: 40 | G89: 57.5 | H89: 30.5 | I89: 45 | J89: 64.5 | K89: 34.5 | L89: 49 | M89: 71.5
D90: Region 3Standard Life Amount5-9 | E90: 28.5 | F90: 44 | G90: 63.5 | H90: 32.5 | I90: 49 | J90: 71.5 | K90: 36.5 | L90: 53 | M90: 77.5
D91: Region 4Standard Life Amount5-9 | E91: 30.5 | F91: 46 | G91: 67 | H91: 34.5 | I91: 51 | J91: 74 | K91: 38.5 | L91: 56 | M91: 80
D92: Region 5Standard Life Amount5-9 | E92: 69 | F92: 109 | G92: 160.5 | H92: 73 | I92: 114 | J92: 167.5 | K92: 76 | L92: 118 | M92: 173.5
D94: Region 1 & 2Standard Life Amount10-49 | E94: 26.5 | F94: 40 | G94: 57.5 | H94: 30.5 | I94: 45 | J94: 64.5 | K94: 34.5 | L94: 49 | M94: 71.5
D95: Region 3Standard Life Amount10-49 | E95: 28.5 | F95: 44 | G95: 63.5 | H95: 32.5 | I95: 49 | J95: 71.5 | K95: 36.5 | L95: 53 | M95: 77.5
D96: Region 4Standard Life Amount10-49 | E96: 30.5 | F96: 46 | G96: 67 | H96: 34.5 | I96: 51 | J96: 74 | K96: 38.5 | L96: 56 | M96: 80
D97: Region 5Standard Life Amount10-49 | E97: 69 | F97: 109 | G97: 160.5 | H97: 73 | I97: 114 | J97: 167.5 | K97: 76 | L97: 118 | M97: 173.5
D99: Region 1 & 2Standard Life Amount50-99 | E99: 26.5 | F99: 40 | G99: 57.5 | H99: 30.5 | I99: 45 | J99: 64.5 | K99: 34.5 | L99: 49 | M99: 71.5
D100: Region 3Standard Life Amount50-99 | E100: 28.5 | F100: 44 | G100: 63.5 | H100: 32.5 | I100: 49 | J100: 71.5 | K100: 36.5 | L100: 53 | M100: 77.5
D101: Region 4Standard Life Amount50-99 | E101: 30.5 | F101: 46 | G101: 67 | H101: 34.5 | I101: 51 | J101: 74 | K101: 38.5 | L101: 56 | M101: 80
D102: Region 5Standard Life Amount50-99 | E102: 69 | F102: 109 | G102: 160.5 | H102: 73 | I102: 114 | J102: 167.5 | K102: 76 | L102: 118 | M102: 173.5
D104: Region 1 & 2Enhanced Life $50,00010-49 | E104: =SUM(E84+$E$74) -> 36.3 | F104: 49.8 | G104: 67.3 | H104: =SUM(H84+$H$74) -> 38.9 | I104: 53.4 | J104: 72.9 | K104: =SUM(K84+$N$74) -> 41.5 | L104: 56 | M104: 78.5
D105: Region 3Enhanced Life $50,00010-49 | E105: 38.3 | F105: 53.8 | G105: 73.3 | H105: 40.9 | I105: 57.4 | J105: 79.9 | K105: 43.5 | L105: 60 | M105: 84.5
D106: Region 4Enhanced Life $50,00010-49 | E106: 40.3 | F106: 55.8 | G106: 76.8 | H106: 42.9 | I106: 59.4 | J106: 82.4 | K106: 45.5 | L106: 63 | M106: 87
D107: Region 5Enhanced Life $50,00010-49 | E107: 78.8 | F107: 118.8 | G107: 170.3 | H107: 81.4 | I107: 122.4 | J107: 175.9 | K107: 83 | L107: 125 | M107: 180.5
D109: Region 1 & 2Enhanced Life $100,00010-49 | E109: =SUM(E84+$E$75) -> 50.3 | F109: 63.8 | G109: 81.3 | H109: =SUM(H84+$H$75) -> 52.9 | I109: 67.4 | J109: 86.9 | K109: =SUM(K84+$N$75) -> 55.5 | L109: 70 | M109: 92.5
D110: Region 3Enhanced Life $100,00010-49 | E110: 52.3 | F110: 67.8 | G110: 87.3 | H110: 54.9 | I110: 71.4 | J110: 93.9 | K110: 57.5 | L110: 74 | M110: 98.5
D111: Region 4Enhanced Life $100,00010-49 | E111: 54.3 | F111: 69.8 | G111: 90.8 | H111: 56.9 | I111: 73.4 | J111: 96.4 | K111: 59.5 | L111: 77 | M111: 101
D112: Region 5Enhanced Life $100,00010-49 | E112: 92.8 | F112: 132.8 | G112: 184.3 | H112: 95.4 | I112: 136.4 | J112: 189.9 | K112: 97 | L112: 139 | M112: 194.5
D114: Region 1 & 2Enhanced Life $150,00010-49 | E114: =SUM(E84+$E$76) -> 64.3 | F114: 77.8 | G114: 95.3 | H114: =SUM(H84+$H$76) -> 66.9 | I114: 81.4 | J114: 100.9 | K114: =SUM(K84+$N$76) -> 69.5 | L114: 84 | M114: 106.5
D115: Region 3Enhanced Life $150,00010-49 | E115: 66.3 | F115: 81.8 | G115: 101.3 | H115: 68.9 | I115: 85.4 | J115: 107.9 | K115: 71.5 | L115: 88 | M115: 112.5
D116: Region 4Enhanced Life $150,00010-49 | E116: 68.3 | F116: 83.8 | G116: 104.8 | H116: 70.9 | I116: 87.4 | J116: 110.4 | K116: 73.5 | L116: 91 | M116: 115
D117: Region 5Enhanced Life $150,00010-49 | E117: 106.8 | F117: 146.8 | G117: 198.3 | H117: 109.4 | I117: 150.4 | J117: 203.9 | K117: 111 | L117: 153 | M117: 208.5
D119: Region 1 & 2Enhanced Life $50,00050-99 | E119: =SUM(E84+$E$78) -> 34.2 | F119: 47.7 | G119: 65.2 | H119: =SUM(H84+$H$78) -> 37.1 | I119: 51.6 | J119: 71.1 | K119: =SUM(K84+$N$78) -> 40 | L119: 54.5 | M119: 77
D120: Region 3Enhanced Life $50,00050-99 | E120: 36.2 | F120: 51.7 | G120: 71.2 | H120: 39.1 | I120: 55.6 | J120: 78.1 | K120: 42 | L120: 58.5 | M120: 83
D121: Region 4Enhanced Life $50,00050-99 | E121: 38.2 | F121: 53.7 | G121: 74.7 | H121: 41.1 | I121: 57.6 | J121: 80.6 | K121: 44 | L121: 61.5 | M121: 85.5
D122: Region 5Enhanced Life $50,00050-99 | E122: 76.7 | F122: 116.7 | G122: 168.2 | H122: 79.6 | I122: 120.6 | J122: 174.1 | K122: 81.5 | L122: 123.5 | M122: 179
D124: Region 1 & 2Enhanced Life $100,00050-99 | E124: =SUM(E84+$E$79) -> 45.2 | F124: 58.7 | G124: 76.2 | H124: =SUM(H84+$H$79) -> 48.1 | I124: 62.6 | J124: 82.1 | K124: =SUM(K84+$N$79) -> 51 | L124: 65.5 | M124: 88
D125: Region 3Enhanced Life $100,00050-99 | E125: 47.2 | F125: 62.7 | G125: 82.2 | H125: 50.1 | I125: 66.6 | J125: 89.1 | K125: 53 | L125: 69.5 | M125: 94
D126: Region 4Enhanced Life $100,00050-99 | E126: 49.2 | F126: 64.7 | G126: 85.7 | H126: 52.1 | I126: 68.6 | J126: 91.6 | K126: 55 | L126: 72.5 | M126: 96.5
D127: Region 5Enhanced Life $100,00050-99 | E127: 87.7 | F127: 127.7 | G127: 179.2 | H127: 90.6 | I127: 131.6 | J127: 185.1 | K127: 92.5 | L127: 134.5 | M127: 190
D129: Region 1 & 2Enhanced Life $150,00050-99 | E129: =SUM(E84+$E$80) -> 56.2 | F129: 69.7 | G129: 87.2 | H129: =SUM(H84+$H$80) -> 59.1 | I129: 73.6 | J129: 93.1 | K129: =SUM(K84+$N$80) -> 62 | L129: 76.5 | M129: 99
D130: Region 3Enhanced Life $150,00050-99 | E130: 58.2 | F130: 73.7 | G130: 93.2 | H130: 61.1 | I130: 77.6 | J130: 100.1 | K130: 64 | L130: 80.5 | M130: 105
D131: Region 4Enhanced Life $150,00050-99 | E131: 60.2 | F131: 75.7 | G131: 96.7 | H131: 63.1 | I131: 79.6 | J131: 102.6 | K131: 66 | L131: 83.5 | M131: 107.5
D132: Region 5Enhanced Life $150,00050-99 | E132: 98.7 | F132: 138.7 | G132: 190.2 | H132: 101.6 | I132: 142.6 | J132: 196.1 | K132: 103.5 | L132: 145.5 | M132: 201
D135: List_RateTable_VOLHMO | E135: ALL PLANS
D136: Region 1 & 2 | E136: 26.5 | F136: 41 | G136: 64.5 | H136: X | I136: X | J136: X | K136: X | L136: X | M136: X | N136: X | O136: X | P136: X
D137: Region 3 | E137: 29.5 | F137: 45 | G137: 70 | H137: X | I137: X | J137: X | K137: X | L137: X | M137: X | N137: X | O137: X | P137: X
D138: Region 4 | E138: 30.5 | F138: 48 | G138: 74 | H138: X | I138: X | J138: X | K138: X | L138: X | M138: X | N138: X | O138: X | P138: X
D139: Region 5 | E139: 74.5 | F139: 114 | G139: 173 | H139: X | I139: X | J139: X | K139: X | L139: X | M139: X | N139: X | O139: X | P139: X
